[Event "67th Mexican-ch Open 2022"]
[Site "Chihuahua"]
[Date "2022.04.15"]
[Round "4.21"]
[White "Ramirez Esqueda, Edson Oswaldo"]
[Black "Avila Rodriguez, Joshua Ad"]
[Result "0-1"]
[ECO "B90"]
[WhiteElo "1931"]
[BlackElo "2182"]
[Annotator "TA"]
[PlyCount "84"]
[EventDate "2022.04.12"]
[EventType "swiss"]
[EventCountry "MEX"]
[SourceTitle "playchess.com"]
[Source "ChessBase"]
[SourceQuality "1"]
[TimeControl "5400+30"]

{[%evp 21,84,23,13,0,0,12,2,24,13,8,14,19,20,18,21,4,22,12,22,21,25,14,62,60,65,-27,0,0,120,32,57,56,97,104,98,67,85,79,150,68,68,0,-14,-179,-176,-165,-164,-166,-116,-111,-89,-116,-103,-209,-204,-404,-237,-698,-41,-38,-23,-968,-961,-873,-865]} 1. e4 {[%emt 0:00:05]} c5 {[%emt 0:00:36]} 2. Nf3 {[%emt 0:00:08]} d6 {[%emt 0:00:04]} 3. d4 {[%emt 0:00:06]} cxd4 {[%emt 0:00:04]} 4. Nxd4 {[%emt 0:00:06]} Nf6 {[%emt 0:00:04]} 5. Nc3 {[%emt 0:00:06]} a6 {[%emt 0:00:06]} 6. f3 {[%emt 0:00:14]} e5 {[%emt 0:00:13]} 7. Nb3 {[%emt 0:00:07]} Be7 {[%emt 0:00:07]} 8. Be3 {[%emt 0:00:05]} Be6 {[%emt 0:00:11]} 9. Qd2 {[%emt 0:00:09]} h5 {[%emt 0:00:07]} 10. O-O-O {[%emt 0:00:19]} Nbd7 {[%emt 0:00:06]} 11. Kb1 {[%emt 0:05:02]} Rc8 $1 {[%emt 0:00:34][%mdl 4] is now more promising than 11...b5.} 12. Nd5 {[%emt 0:00:27] B90: Sicilian Najdorf: Unusual White 6th moves, 6 Be3 Ng4 and 6 Be3 e5.} Nxd5 {[%emt 0:02:51]} 13. exd5 {[%emt 0:00:10]} Bf5 {[%emt 0:00:03]} 14. Bd3 {[%emt 0:00:29] The position is equal.} Bxd3 {[%emt 0:00:07]} 15. Qxd3 {[%emt 0:00:06]} Bg5 {[%emt 0:00:06]} 16. Bf2 {[%emt 0:02:17]} O-O {[%emt 0:49:44]} 17. h4 {[%emt 0:03:51]} Bh6 {[%emt 0:02:48]} 18. g4 $1 {[%emt 0:00:54]} Bf4 {[%emt 0:00:06] [#]} 19. Rhg1 $146 {[%emt 0:02:37]} ({Predecessor:} 19. Nd2 Bxd2 20. Rxd2 Nf6 21. Be3 e4 22. fxe4 Nxg4 23. Bd4 Qe7 24. Qf3 {0-1 (38) Maidel,A (2347)-Aveskulov,V (2529) Chess.com INT 2017}) 19... hxg4 {[%emt 0:10:54]} 20. Rxg4 {[%emt 0:02:23] Black must now prevent Rdg1.} f5 {[%emt 0:00:55]} 21. Rg2 {[%emt 0:00:56]} b5 {[%emt 0:05:52]} (21... Bh6 $11 {is more appropriate.}) 22. Rdg1 $14 {[%emt 0:03:39]} Rf7 {[%emt 0:00:06]} 23. Rg6 {[%emt 0:02:55]} (23. h5 $14) 23... Nf8 {[%emt 0:00:22]} (23... e4 $5 {[%cal Re4d3]} 24. Qd1 (24. fxe4 $2 Ne5 $17) 24... Ne5 $11) 24. R6g2 {[%emt 0:00:07]} Qf6 {[%emt 0:01:49]} (24... Nd7 $11 {remains equal.}) 25. Be1 {[%emt 0:06:05]} (25. Na5 $1 $16) 25... Re8 {[%emt 0:00:45]} 26. Qc3 {[%emt 0:01:42]} Ree7 {[%emt 0:05:30]} 27. Na5 {[%emt 0:05:32]} ({Much weaker is} 27. Qc8 Be3 $11) 27... Qh6 {[%emt 0:02:56]} 28. Nc6 {[%emt 0:03:47]} Re8 $1 {[%emt 0:00:05]} 29. Bf2 {[%emt 0:00:43] Inhibits Be3.} Bd2 {[%emt 0:04:18]} (29... Qh5 $142) 30. Qd3 {[%emt 0:01:13]} (30. Qa3 $16) 30... e4 $1 {[%emt 0:00:54]} 31. fxe4 {[%emt 0:01:08]} (31. Qe2 $1 $14 e3 32. Be1 Bxe1 33. Qxe1) 31... fxe4 $11 {[%emt 0:00:09]} 32. Qd4 {[%emt 0:00:13]} (32. Qe2 $1 $11 e3 33. Be1 Bxe1 34. Qxe1) 32... e3 $1 $19 {[%emt 0:01:19]} 33. Be1 {[%emt 0:00:53]} Bxe1 {[%emt 0:01:03]} 34. Rxe1 {[%emt 0:00:07]} e2 {[%emt 0:00:08]} ({Black should play} 34... Ng6 $19 35. Rge2 Nxh4) 35. Rgg1 $17 {[%emt 0:04:29]} Qh5 $40 {[%emt 0:08:25][%mdl 128] Black has strong attack.} 36. Rg5 {[%emt 0:04:58]} Qf3 {[%emt 0:01:24] Threatens to win with ...Re4.} 37. b3 {[%emt 0:00:43]} (37. a3 $17) 37... Re4 $19 {[%emt 0:00:31]} 38. Qg1 {[%emt 0:02:53]} (38. Qd2 {is the only way for White.}) 38... Qf1 {[%emt 0:01:41]} (38... Qc3 $142 39. Nd4 Rxd4 40. Rxe2 Rxh4) 39. Nd8 $2 {[%emt 0:01:44] [#]} ({Wrong is} 39. Rxg7+ $2 Rxg7 40. Rxf1 Rf4 $3 {[%mdl 512]} 41. Qxg7+ (41. Ne7+ $2 Kh8 $19) 41... Kxg7 42. Rxf4 (42. Rg1+ $2 Kf6 $19) 42... e1=Q+ 43. Kb2 Nd7 $19) (39. Kb2 Qf6+ 40. c3) 39... Qxg1 $2 {[%emt 0:00:22]} (39... Qxe1+ $1 $19 {[%mdl 512]} 40. Qxe1 Rf1) 40. Rgxg1 $15 {[%emt 0:00:09]} Rf5 {[%emt 0:00:27][%cal Of8g6] ...Ng6! is the strong threat.} (40... Rf2 $5 {[%cal Re4f4]} 41. Kc1 Rxh4 $15) 41. Rg5 {[%emt 0:02:40][%mdl 8192] Against Ng6} (41. Kc1 $11) 41... Rf1 $19 {[%emt 0:00:14]} 42. Rg1 {[%emt 0:00:07]} Rxg1 {[%emt 0:00:06] Weighted Error Value: White=0.71/Black=0.37} 0-1

[Event "67th Mexican-ch Open 2022"]
[Site "Chihuahua"]
[Date "2022.04.15"]
[Round "4.22"]
[White "De Loera Torres, Naxhelli Stella"]
[Black "Luna Javier, Edgar Froylan"]
[Result "0-1"]
[ECO "D80"]
[WhiteElo "1556"]
[BlackElo "2148"]
[Annotator "TA"]
[PlyCount "36"]
[EventDate "2022.04.12"]
[EventType "swiss"]
[EventCountry "MEX"]
[SourceTitle "playchess.com"]
[Source "ChessBase"]
[SourceQuality "1"]
[TimeControl "5400+30"]

{[%evp 9,36,0,0,-14,-14,-14,-3,-14,-14,-14,0,-2,-2,0,-12,-66,-23,-33,-31,-619,-613,-562,-596,-858,-851,-976,-968,-29998,-29999]} 1. d4 {[%emt 0:00:03]} Nf6 {[%emt 0:00:08][%cal Bg8f6,Bf6d5,Bd5c3][%mdl 32]} 2. c4 {[%emt 0:00:07]} g6 {[%emt 0:00:19]} 3. Nc3 {[%emt 0:00:13]} d5 {[%emt 0:00:07]} 4. h4 {[%emt 0:00:17]} c5 {[%emt 0:03:01]} 5. cxd5 {[%emt 0:02:02]} Nxd5 {[%emt 0:00:54]} 6. dxc5 {[%emt 0:01:42] D80: Grünfeld: Unusual White 4th moves and 4 Bg5.} Nxc3 {[%emt 0:00:18][%csl Gc3][%cal Rd8d1] [#]} 7. Qxd8+ {[%emt 0:00:16]} Kxd8 {[%emt 0:00:02]} 8. bxc3 {[%emt 0:00:13] The position is equal.} Bg7 {[%emt 0:00:14]} 9. Bd2 {[%emt 0:01:35]} Na6 {[%emt 0:09:07]} (9... Nd7 $5 {[%cal Rd7c5]}) 10. O-O-O {[%emt 0:04:48] [#] Threatens to win with Bh6+.} Bd7 {[%emt 0:01:59]} 11. c6 {[%emt 0:01:26]} bxc6 {[%emt 0:00:09] [#]} 12. g4 $146 {[%emt 0:07:16]} (12. e4 $11 Nc5 13. f3) ({Predecessor:} 12. e4 Nc5 13. f3 Kc7 14. h5 Rab8 15. Bc4 f5 16. Re1 Rb6 17. Kc2 Rhb8 18. Bc1 {½-½ (28) Rice,P (2342)-Colucci,P (2241) ICCF email 2021}) 12... Kc7 {[%emt 0:01:21]} 13. g5 {[%emt 0:03:11]} Rab8 {[%emt 0:05:13] And now ...Bf5 would win.} 14. h5 $2 {[%emt 0:04:58][%mdl 8192] This move loses the game for White.} (14. Bh3 $15 Bxh3 15. Nxh3) 14... Bf5 $19 {[%emt 0:04:28][%csl Gf5][%cal Rb8b1]} 15. Bf4+ {[%emt 0:16:42]} e5 {[%emt 0:00:01] White must now prevent ...Rb1+.} 16. Bxe5+ {[%emt 0:02:59]} Bxe5 {[%emt 0:00:06]} 17. e4 {[%emt 0:00:27]} Bxe4 {[%emt 0:00:33] ( -> ...Bf4+)} 18. f3 {[%emt 0:00:56]} Bf4+ {[%emt 0:00:02] Weighted Error Value: White=1.34/Black=0.06 (flawless)} 0-1

[Event "67th Mexican-ch Open 2022"]
[Site "Chihuahua"]
[Date "2022.04.15"]
[Round "4.23"]
[White "Palma Villanueva, Miguel Ta"]
[Black "Flores Teillery, Alejandro Francisco "]
[Result "1/2-1/2"]
[ECO "B92"]
[WhiteElo "2210"]
[BlackElo "1879"]
[Annotator "TA"]
[PlyCount "90"]
[EventDate "2022.04.12"]
[EventType "swiss"]
[EventCountry "MEX"]
[SourceTitle "playchess.com"]
[Source "ChessBase"]
[SourceQuality "1"]
[TimeControl "5400+30"]

{[%evp 17,90,0,3,-1,43,0,16,-23,-14,-11,0,-23,-11,-35,-37,-59,-55,-62,-60,-56,-35,-40,-29,-33,0,0,0,0,0,0,0,0,0,0,0,0,9,9,16,12,20,0,7,8,5,0,0,0,9,10,0,15,17,0,0,0,20,20,51,19,64,49,42,42,46,41,43,0,0,0,0,0,0,0,0]} 1. e4 {[%emt 0:00:03]} c5 {[%emt 0:01:01]} 2. Nf3 {[%emt 0:00:07]} d6 {[%emt 0:00:05]} 3. d4 {[%emt 0:00:03]} cxd4 {[%emt 0:00:11]} 4. Nxd4 {[%emt 0:01:41]} Nf6 {[%emt 0:00:36]} 5. Nc3 {[%emt 0:00:04]} a6 {[%emt 0:01:08]} 6. Be2 {[%emt 0:00:06]} e5 {[%emt 0:01:00]} 7. Nb3 {[%emt 0:00:08]} Be7 {[%emt 0:00:23]} 8. O-O {[%emt 0:04:36]} O-O {[%emt 0:01:00]} 9. a4 {[%emt 0:02:41]} Nc6 {[%emt 0:03:09]} 10. Bf3 {[%emt 0:03:06] [#] B92: Sicilian Najdorf: 6 Be2.} Bd7 $146 {[%emt 0:03:39]} ({Predecessor:} 10... Nb4 11. Bg5 Be6 12. Re1 Rc8 13. Nd2 h6 14. Bh4 b5 15. axb5 axb5 16. Nf1 Nxc2 17. Qxc2 b4 18. Ne3 bxc3 19. bxc3 Qd7 20. Red1 Rc6 21. c4 Rfc8 22. Be2 Nh7 23. Bxe7 {½-½ (23) Kasimdzhanov,R (2652)-Nigmatov,O (2452) Tashkent 2019}) 11. Bg5 {[%emt 0:02:08]} Nb4 {[%emt 0:00:40]} 12. Ne2 {[%emt 0:12:34][%cal Bc3e2,Be2g3,Bg3f5,Bf5d6][%mdl 32]} Be6 {[%emt 0:02:30]} 13. Ng3 {[%emt 0:02:28]} g6 {[%emt 0:01:40]} 14. Qd2 {[%emt 0:03:29]} Nc6 {[%emt 0:03:18][%cal Bb4c6,Bc6d4,Bd4f3][%mdl 32]} 15. Bh6 {[%emt 0:10:35]} Re8 {[%emt 0:00:06]} 16. Nf5 {[%emt 0:00:07]} Bxb3 {[%emt 0:01:05]} 17. cxb3 {[%emt 0:00:13][%cal Of1d1]} Bf8 $1 {[%emt 0:00:15]} 18. Bxf8 {[%emt 0:08:25][%cal Od2h6] [#] And now Qh6! would win.} Rxf8 {[%emt 0:00:08]} 19. Nxd6 {[%emt 0:00:27]} Nd4 {[%emt 0:00:15]} 20. Nc4 {[%emt 0:00:03]} Nxf3+ {[%emt 0:08:49]} 21. gxf3 {[%emt 0:00:06]} Qxd2 {[%emt 0:00:32]} 22. Nxd2 {[%emt 0:00:02]} Rfd8 {[%emt 0:00:13]} 23. Nc4 {[%emt 0:06:09]} Rd3 $1 {[%emt 0:00:16][%csl LRb3,LRf3]} 24. Ra3 {[%emt 0:00:43]} Re8 {[%emt 0:08:02]} 25. Ne3 {[%emt 0:10:36]} Rc8 {[%emt 0:01:37]} 26. b4 {[%emt 0:05:10]} Rxa3 {[%emt 0:04:51]} 27. bxa3 $11 {[%emt 0:00:02][%mdl 4096] Endgame KRN-KRN} Rc3 {[%emt 0:00:08]} 28. a5 {[%emt 0:04:01]} Rxa3 {[%emt 0:01:09]} 29. Rb1 {[%emt 0:00:01] Prevents Rb3.} Nh5 {[%emt 0:09:25]} 30. Nc4 {[%emt 0:01:02][%csl LRa3,LRe5]} Rxf3 {[%emt 0:00:32]} 31. Nxe5 {[%emt 0:04:52]} Rc3 {[%emt 0:00:27]} 32. Nd7 {[%emt 0:00:05]} Rc7 {[%emt 0:00:19]} 33. Nc5 {[%emt 0:00:15]} Kf8 {[%emt 0:00:24]} 34. Rd1 {[%emt 0:00:29]} Ke7 $1 {[%emt 0:00:28] Against Rd6} 35. e5 {[%emt 0:00:26]} Nf4 {[%emt 0:03:33]} 36. Rd6 {[%emt 0:00:10]} Ne6 {[%emt 0:00:05]} 37. Nxe6 {[%emt 0:01:20]} fxe6 {[%emt 0:00:05] KR-KR} 38. Rb6 {[%emt 0:00:17]} h6 {[%emt 0:00:16]} 39. Kg2 {[%emt 0:00:23]} Kf7 {[%emt 0:01:48]} 40. Kg3 {[%emt 0:00:13]} g5 {[%emt 0:03:05]} 41. h4 {[%emt 0:02:06] [#] aiming for hxg5.} Rc3+ {[%emt 0:01:40]} 42. f3 {[%emt 0:00:06]} gxh4+ {[%emt 0:00:03] The position is equal.} 43. Kxh4 {[%emt 0:00:04] Kh5 is the strong threat.} Rxf3 {[%emt 0:00:13]} 44. Rxb7+ {[%emt 0:00:04]} Kg6 {[%emt 0:00:05]} 45. Re7 {[%emt 0:07:25]} Rf4+ {[%emt 0:00:56] Weighted Error Value: White=0.08 (flawless) /Black=0.06 (flawless)} 1/2-1/2

[Event "67th Mexican-ch Open 2022"]
[Site "Chihuahua"]
[Date "2022.04.15"]
[Round "4.24"]
[White "Gongora Montes, Benjamin"]
[Black "Almendarez Verdin, Manuel Adan"]
[Result "1-0"]
[ECO "D97"]
[WhiteElo "2157"]
[BlackElo "1662"]
[Annotator "TA"]
[PlyCount "39"]
[EventDate "2022.04.12"]
[EventType "swiss"]
[EventCountry "MEX"]
[SourceTitle "playchess.com"]
[Source "ChessBase"]
[SourceQuality "1"]
[TimeControl "5400+30"]

{[%evp 13,39,7,23,25,24,0,36,31,91,75,118,86,128,120,127,121,185,121,119,131,139,100,275,301,324,314,29993,934]} 1. d4 {[%emt 0:00:30]} Nf6 {[%emt 0:05:19]} 2. c4 {[%emt 0:00:00]} g6 {[%emt 0:00:12]} 3. Nc3 {[%emt 0:00:00]} d5 {[%emt 0:00:06]} 4. Nf3 {[%emt 0:00:00]} Bg7 {[%emt 0:00:25]} 5. Qb3 {[%emt 0:00:00]} dxc4 {[%emt 0:00:19]} 6. Qxc4 {[%emt 0:00:00]} O-O {[%emt 0:01:05]} 7. e4 {[%emt 0:00:06]} Nfd7 {[%emt 0:01:26]} 8. Bg5 {[%emt 0:04:19] D97: Grünfeld: Russian System: 7 e4, replies other than 7...Bg4.} Nb6 {[%emt 0:00:10]} 9. Qb3 {[%emt 0:00:06] [#]} Nc6 $146 {[%emt 1:25:58]} ({Predecessor:} 9... h6 10. Be3 Kh7 11. Rd1 Bg4 12. Be2 Bxf3 13. gxf3 a5 14. h4 a4 15. Qc2 Nc6 16. Nb5 Rc8 {1-0 (35) Schuster,K (1854)-Schulz,M (2038) Bayern 2001}) 10. d5 {[%emt 0:01:54] White is slightly better.} Nb8 {[%emt 0:00:00]} (10... Ne5 $1 $14) 11. Rd1 $16 {[%emt 0:00:34]} h6 {[%emt 0:00:00]} 12. Bf4 {[%emt 0:01:07]} a5 {[%emt 0:00:00]} 13. Be2 $36 {[%emt 0:06:15][%mdl 2048] Black is under strong pressure. 0x0.002037565f53dp-1022s more active pieces.} a4 {[%emt 0:00:00]} 14. Qc2 {[%emt 0:00:21] Threatens to win with Nb5.} f5 {[%emt 0:00:00]} (14... Bg4 $16 {might work better.} 15. Nb5 Na6) 15. Be5 {[%emt 0:01:08]} ({White should try} 15. a3 $18) 15... Bxe5 {[%emt 0:00:00]} 16. Nxe5 {[%emt 0:00:11]} Qd6 {[%emt 0:00:00]} 17. f4 {[%emt 0:04:49] aiming for 0-0.} fxe4 $2 {[%emt 0:00:00] [#]} (17... N6d7 $16) 18. O-O $18 {[%emt 0:00:11]} ({Don't do} 18. Qxe4 $6 Bf5 19. Qd4 c5 $16) 18... Qc5+ {[%emt 0:00:00]} 19. Kh1 {[%emt 0:00:09]} e3 $2 {[%emt 0:00:00]} (19... Bf5 $2 20. g4 Bd7 21. Qxe4) (19... N8d7 $18 20. Nxg6 (20. Qxe4 Nxe5 21. g4 Bxg4 $16) 20... Rf7 21. Qxe4 Nf6) 20. Qxg6+ {[%emt 1:18:50] Weighted Error Value: White=0.12 (very precise) /Black=0.86} 1-0

[Event "67th Mexican-ch Open 2022"]
[Site "Chihuahua"]
[Date "2022.04.15"]
[Round "4.25"]
[White "Guerrero Rodriguez, Alejandra"]
[Black "Mora Velasco, Alma Jaqueline"]
[Result "1/2-1/2"]
[ECO "B22"]
[WhiteElo "2019"]
[BlackElo "1780"]
[Annotator "TA"]
[PlyCount "144"]
[EventDate "2022.04.12"]
[EventType "swiss"]
[EventCountry "MEX"]
[SourceTitle "playchess.com"]
[Source "ChessBase"]
[SourceQuality "1"]
[TimeControl "5400+30"]

{[%evp 14,144,5,7,47,-32,-41,-55,-56,-50,-46,-48,-40,-52,-54,-83,-75,-102,-111,-156,-149,-145,-145,-139,-92,-91,-101,-116,-124,-113,-103,-115,-106,-95,-99,-116,-116,-120,-117,-115,-127,-137,-113,-123,-120,-127,-127,-118,-116,-147,-150,-144,-130,-149,-151,-147,-156,-154,-154,-194,-145,-172,-151,-132,-129,-303,-304,-293,-283,-261,-251,-513,-379,-401,-398,-390,-345,-572,-370,-416,-420,-418,-410,-389,-381,-365,-295,-323,-310,-252,-217,-206,-217,-199,-174,-196,-199,-222,-154,-154,-134,-134,-147,-175,-24,-53,-23,-23,-8,-86,-13,-14,-16,-86,-86,-86,-91,-100,-100,-108,-108,-108,-108,-115,-108,-115,-115,-115,0,-115,-108,-116,0]} 1. e4 {[%emt 0:00:05]} c5 {[%emt 0:04:24]} 2. c3 {[%emt 0:00:50]} Nf6 {[%emt 0:00:42]} 3. e5 {[%emt 0:00:39]} Nd5 {[%emt 0:00:22]} 4. d4 {[%emt 0:00:10]} cxd4 {[%emt 0:01:02]} 5. Nf3 {[%emt 0:00:10]} Nc6 {[%emt 0:00:46]} 6. cxd4 {[%emt 0:01:24]} d6 {[%emt 0:01:45]} 7. Bc4 {[%emt 0:02:09]} Nb6 {[%emt 0:03:52]} 8. Bb5 {[%emt 0:02:01]} a6 {[%emt 0:07:31] B22: Sicilian: 2 c3.} 9. Be2 {[%emt 0:04:20]} (9. Bxc6+ $14 bxc6 10. Nc3) 9... dxe5 $15 {[%emt 0:03:16]} 10. dxe5 {[%emt 0:00:56]} Qxd1+ {[%emt 0:02:10] Black is slightly better.} 11. Bxd1 {[%emt 0:00:06][%cal Be2d1,Bd1b3,Bb3c2][%mdl 32]} g6 {[%emt 0:03:02] [#]} 12. Bb3 $146 {[%emt 0:07:02]} ({Predecessor:} 12. O-O Bg7 13. Re1 Nc4 14. Nc3 e6 15. Bf4 Nxb2 16. Be2 Nb4 17. Reb1 N2d3 18. Bg3 Nxe5 19. Bxe5 Bxe5 20. Nxe5 {½-½ (75) Ibar,M (2314)-Savinell,F (2075) Buenos Aires 2004}) 12... Na5 {[%emt 0:04:55]} 13. Bc2 {[%emt 0:01:38]} Bg7 {[%emt 0:01:07]} 14. Bf4 {[%emt 0:04:49]} Nd5 {[%emt 0:08:17]} 15. Bg3 {[%emt 0:04:15]} Nb4 {[%emt 0:04:39]} 16. Be4 {[%emt 0:01:10]} Bf5 {[%emt 0:06:29]} 17. Bxf5 {[%emt 0:01:08]} gxf5 {[%emt 0:00:07]} 18. Na3 {[%emt 0:00:27]} Nd3+ {[%emt 0:01:52]} (18... f4 $142 19. Bh4 Nd3+ 20. Ke2 Nxe5 21. Nxe5 Bxe5) 19. Ke2 $17 {[%emt 0:00:16]} Nxb2 {[%emt 0:06:42]} 20. Rab1 {[%emt 0:01:12]} Na4 {[%emt 0:00:36] aiming for ...Nc3+.} 21. Rhc1 {[%emt 0:04:11] Inhibits Nc3+.} O-O {[%emt 0:01:54]} 22. Bf4 {[%emt 0:01:53]} b5 {[%emt 0:05:22]} 23. Bd2 {[%emt 0:00:46]} Nb7 {[%emt 0:00:41]} 24. Rc7 {[%emt 0:00:26]} Nbc5 {[%emt 0:00:36]} 25. Rc1 {[%emt 0:02:58]} Rfc8 {[%emt 0:04:38]} 26. Rxc8+ {[%emt 0:07:51]} Rxc8 {[%emt 0:00:08][%cal Ba8c8,Bc8c7,Bc7d7][%mdl 32]} 27. Bb4 {[%emt 0:06:02]} Rc7 {[%emt 0:02:36]} 28. Nb1 {[%emt 0:00:38]} Kf8 {[%emt 0:01:09]} 29. Nd4 {[%emt 0:04:12]} Bxe5 {[%emt 0:03:23]} 30. Nxf5 {[%emt 0:00:26]} e6 {[%emt 0:00:41]} (30... Bxh2 31. g3 $16) 31. Ng3 {[%emt 0:02:14]} Ke8 {[%emt 0:00:28]} 32. Ba5 {[%emt 0:01:56]} Rd7 {[%emt 0:02:12]} 33. Nd2 {[%emt 0:00:42]} f5 {[%emt 0:01:57]} 34. Nb3 {[%emt 0:01:10]} Nd3 {[%emt 0:01:11]} 35. Rc8+ {[%emt 0:06:05]} Ke7 {[%emt 0:02:07]} 36. f3 {[%emt 0:00:36]} Nab2 {[%emt 0:01:18]} (36... Nf4+ $19 37. Kf2 Nb2) 37. Nh5 {[%emt 0:02:11]} Kf7 {[%emt 0:01:45]} ({Worse is} 37... Bxh2 38. g3 $17) 38. g4 {[%emt 0:02:08]} Nc4 {[%emt 0:03:12]} ({Inferior is} 38... Bxh2 39. Rh8 Rd5 40. Bd2 $11) 39. Rd8 $2 {[%emt 0:04:50]} (39. h3 $17 {keeps fighting.}) 39... Rxd8 $19 {[%emt 0:00:53]} 40. Bxd8 {[%emt 0:00:02]} Nb4 {[%emt 0:01:45]} 41. gxf5 {[%emt 0:06:41]} exf5 {[%emt 0:00:23]} ({Avoid the trap} 41... Nxa2 $2 42. fxe6+ Kxe6 43. f4 $19) 42. Nc1 $2 {[%emt 0:00:47]} (42. f4 {was necessary.} Bd6 43. Kf3) 42... Bxh2 {[%emt 0:01:22]} 43. Bh4 {[%emt 0:01:48]} Bd6 {[%emt 0:01:17] Hoping for ...f4.} 44. Be1 {[%emt 0:00:53]} Nc2 {[%emt 0:02:05]} 45. Bc3 {[%emt 0:00:33]} (45. Bg3 {was worth a try.}) 45... N2e3 {[%emt 0:01:00] ...Nd5 is the strong threat.} 46. Nd3 {[%emt 0:00:37]} Nd5 {[%emt 0:00:19] Prevents Ndf4.} 47. Bd4 {[%emt 0:00:21]} a5 {[%emt 0:02:33]} 48. Ng7 {[%emt 0:00:19]} Ne7 {[%emt 0:00:58]} 49. Nh5 {[%emt 0:00:06]} Ng6 {[%emt 0:01:19]} 50. Nf6 {[%emt 0:00:35]} Nge5 {[%emt 0:00:32]} 51. Nxh7 {[%emt 0:00:40]} Kg6 {[%emt 0:01:14] Inhibits Ng5.} 52. Nf8+ {[%emt 0:02:50]} Bxf8 {[%emt 0:01:03]} 53. Bxe5 {[%emt 0:00:21][%mdl 4096] Endgame KBN-KBN} Kf7 {[%emt 0:00:26]} 54. Bd4 {[%emt 0:00:36]} Bd6 {[%emt 0:00:13]} 55. Nc1 {[%emt 0:02:14]} Ke6 {[%emt 0:00:16]} 56. Kd3 {[%emt 0:00:15]} Kd5 {[%emt 0:00:30] Threatens to win with ...f4.} 57. Ne2 {[%emt 0:00:52]} b4 {[%emt 0:01:10]} 58. f4 {[%emt 0:00:33] [#]} Na3 $2 {[%emt 0:00:20]} (58... Bc5 $1 $19 59. Bg7 Nd6) 59. Ng3 {[%emt 0:01:18]} Bxf4 {[%emt 0:00:18]} (59... Ke6 $5 {[%cal Rd6f4]} 60. Be3 Bc7 $15) 60. Nxf5 {[%emt 0:00:01]} Nb5 {[%emt 0:00:44]} 61. Bb2 {[%emt 0:01:00] [#]} (61. Bb6 $11) 61... Nd6 {[%emt 0:00:27]} (61... Bg5 $1 $17 62. Ng3 Nd6) 62. Ne7+ $1 $11 {[%emt 0:00:36]} Kc5 {[%emt 0:00:36]} 63. Bd4+ {[%emt 0:00:32]} (63. a3 $11 {keeps the balance.}) 63... Kb5 $17 {[%emt 0:00:20]} 64. Nd5 {[%emt 0:00:32]} Bg3 {[%emt 0:00:25]} 65. Bb2 {[%emt 0:01:37]} Nb7 {[%emt 0:00:33]} 66. Ne3 {[%emt 0:00:34]} Nc5+ {[%emt 0:00:12]} 67. Kc2 {[%emt 0:00:03]} a4 {[%emt 0:00:20]} 68. Nf5 {[%emt 0:00:36]} Bh2 {[%emt 0:00:18]} 69. Ne3 {[%emt 0:01:18]} Ne4 {[%emt 0:01:15]} 70. Kd3 {[%emt 0:01:06]} Nc5+ {[%emt 0:00:05]} 71. Kc2 $1 {[%emt 0:00:04]} Bg1 {[%emt 0:00:48]} 72. Nd5 {[%emt 0:00:09]} Bh2 {[%emt 0:00:51] Whites escaped into a draw.  Weighted Error Value: White=0.25 (precise) /Black=0.21 (precise)} (72... Ne6 $17 73. Kd3 Bf2) 1/2-1/2